bitfinex/quotes_BTCUSD_20240821
["timestamp","ask_amount","ask_price","bid_price","bid_amount"]
[1724264723291,0.265609,60384.0,60379.0,0.0019053]
[1724264723501,0.178617,60380.0,60379.0,0.01085215]
[1724264723742,0.113,60380.0,60379.0,0.0019053]
[1724264723951,0.1,60380.0,60379.0,0.0009053]
[1724264724190,0.017,60380.0,60379.0,0.0029053]
[1724264724395,0.017,60380.0,60379.0,0.01185215]
[1724264725276,0.006,60380.0,60379.0,0.01085215]
[1724264725689,0.011,60380.0,60379.0,0.01085215]
[1724264726801,0.199617,60380.0,60379.0,0.01085215]
[1724264727015,0.530852,60380.0,60379.0,0.01085215]
[1724264727299,0.011,60380.0,60379.0,0.0019053]
[1724264727792,0.011,60380.0,60379.0,0.01085215]
[1724264730001,0.034,60380.0,60379.0,0.01085215]
[1724264730679,0.199617,60380.0,60379.0,0.01085215]
[1724264730888,0.034,60380.0,60379.0,0.0019053]
[1724264731314,0.034,60380.0,60379.0,0.01085215]
[1724264734112,1.02608998,60380.0,60379.0,0.01085215]
[1724264734317,1.02608998,60380.0,60379.0,0.0019053]
[1724264734318,1.17388998,60380.0,60379.0,0.0019053]
[1724264734522,0.165628,60376.0,60368.0,0.16565]
[1724264734740,0.165628,60376.0,60367.0,0.4653272]
[1724264734741,0.023,60375.0,60369.0,0.165647]
[1724264734940,0.023,60375.0,60369.0,0.00906073]
[1724264735150,0.023,60379.0,60372.0,0.331276]
[1724264735359,0.023,60379.0,60375.0,0.1764]
[1724264735560,0.023,60379.0,60377.0,0.165624]
[1724264735767,0.006,60380.0,60377.0,0.165624]
[1724264735966,0.006,60380.0,60378.0,0.00895824]
[1724264736406,0.1,60382.0,60378.0,0.17458024]
[1724264736670,0.023,60381.0,60379.0,0.16562]
[1724264736945,0.40572708,60391.0,60383.0,0.165609]
[1724264737211,0.40572708,60391.0,60382.0,0.331223]
[1724264737470,0.40572708,60391.0,60383.0,0.31930731]
[1724264737821,0.57131408,60391.0,60383.0,0.15370131]
[1724264737979,0.57131508,60391.0,60383.0,0.15370131]
[1724264738217,0.16559,60390.0,60383.0,0.15370131]
[1724264738479,0.33118,60390.0,60383.0,0.15370131]
[1724264738717,0.40572708,60391.0,60383.0,0.00890131]
[1724264738718,0.165606,60384.0,60383.0,0.00890131]
[1724264738940,0.188606,60384.0,60379.0,0.0009042]
[1724264739165,0.165606,60384.0,60379.0,0.0009042]
[1724264739388,0.023,60383.0,60380.0,0.00893546]
[1724264739803,0.023,60385.0,60380.0,0.00893546]
[1724264740502,0.16400298,60384.0,60380.0,0.00893546]
[1724264740722,0.165615,60381.0,60380.0,0.00893546]
[1724264740965,0.188615,60381.0,60380.0,0.00893546]
[1724264741433,0.188615,60381.0,60379.0,0.0009042]
[1724264741698,0.023,60380.0,60379.0,0.0009042]
[1724264742101,0.188617,60380.0,60379.0,0.0009042]
[1724264742568,1.01508998,60380.0,60379.0,0.0009042]
[1724264742802,0.005,60384.0,60380.0,0.1828]
[1724264743013,0.005,60384.0,60383.0,0.165609]
[1724264743222,0.1,60390.0,60385.0,0.165604]
[1724264743438,0.1,60390.0,60383.0,0.15810131]
[1724264743659,0.1,60390.0,60386.0,0.00886716]
[1724264743660,0.12597212,60390.0,60386.0,0.00886716]
[1724264743871,0.12597212,60390.0,60380.0,0.1828]
[1724264743872,0.165594,60389.0,60380.0,0.1828]
[1724264744107,0.002,60381.0,60380.0,0.1828]
[1724264744319,0.023,60387.0,60381.0,0.00892408]
[1724264744544,0.023,60387.0,60380.0,0.1828]
[1724264744545,0.16110722,60387.0,60380.0,0.1828]
[1724264744751,0.03297212,60390.0,60389.0,0.331186]
[1724264744963,0.03097212,60390.0,60388.0,0.1803]
[1724264745170,0.02597212,60390.0,60389.0,0.165593]
[1724264745399,0.02597212,60390.0,60389.0,0.00883301]
[1724264745607,0.02597212,60390.0,60389.0,0.19353301]
[1724264745819,0.02597212,60390.0,60389.0,0.1847]
[1724264746031,0.04897212,60390.0,60389.0,0.19353301]
[1724264746275,0.04897212,60390.0,60389.0,0.69031201]
[1724264746276,0.02597212,60390.0,60389.0,0.69031201]
[1724264746509,0.02597212,60390.0,60389.0,1.49408401]
[1724264746713,0.40572708,60401.0,60400.0,0.165562]
[1724264746927,0.18658992,60411.0,60400.0,0.350262]
[1724264746928,0.165535,60410.0,60400.0,0.350262]
[1724264747147,0.066347,60409.0,60400.0,0.19340783]
[1724264747356,0.025964,60402.0,60401.0,0.165557]
[1724264747576,0.025964,60402.0,60401.0,0.17425645]
[1724264747800,0.025964,60402.0,60401.0,0.00869645]
[1724264748222,0.025964,60402.0,60400.0,0.001]
[1724264748431,0.025964,60402.0,60401.0,0.00869645]
[1724264748644,0.025964,60402.0,60401.0,0.17425645]
[1724264748856,0.025964,60402.0,60401.0,0.49668]
[1724264749075,0.025964,60402.0,60401.0,0.80797645]
[1724264749291,0.01,60409.0,60404.0,0.16555]
[1724264749503,0.023,60408.0,60404.0,0.16555]
[1724264749707,0.023,60408.0,60405.0,0.00865094]
[1724264749917,0.11258641,60408.0,60405.0,0.00865094]
[1724264750348,0.023,60408.0,60406.0,0.331092]
[1724264750551,0.023,60408.0,60407.0,0.165543]
[1724264750956,0.023,60410.0,60407.0,0.17417119]
[1724264751201,0.004,60408.0,60407.0,0.17417119]
[1724264751413,0.023,60408.0,60407.0,0.17417119]
[1724264751630,0.023,60408.0,60407.0,0.83634519]
[1724264751631,0.003,60408.0,60407.0,0.83634519]
[1724264751849,0.003,60408.0,60407.0,1.00944519]
[1724264752063,0.023,60411.0,60407.0,1.00944519]
[1724264752064,0.023,60411.0,60410.0,0.165535]
[1724264752493,0.02678407,60412.0,60410.0,0.165535]
[1724264752494,0.02678407,60412.0,60411.0,0.165532]
[1724264752720,0.02678407,60412.0,60411.0,0.827662]
[1724264752969,0.02678407,60412.0,60411.0,1.49880969]
[1724264754067,0.02678407,60412.0,60411.0,0.50517969]
[1724264754247,0.03278407,60412.0,60411.0,0.50617969]
[1724264754484,0.03278407,60412.0,60411.0,0.17511469]
[1724264754699,0.006822,60412.0,60411.0,0.00958269]
[1724264754905,0.029822,60412.0,60411.0,0.00958269]
[1724264755110,0.033822,60412.0,60411.0,0.00958269]
[1724264755994,0.010822,60412.0,60411.0,0.00958269]
[1724264756217,0.03678137,60412.0,60411.0,0.00958269]
[1724264759858,0.20231137,60412.0,60411.0,0.00958269]
[1724264760068,1.42903435,60412.0,60411.0,0.00958269]
[1724264760279,1.76009435,60412.0,60411.0,0.001]
[1724264760507,2.04479435,60412.0,60411.0,0.001]
[1724264760720,2.14610419,60412.0,60411.0,0.001]
[1724264760937,0.165555,60403.0,60395.0,0.346176]
[1724264761154,0.331103,60405.0,60395.0,0.1806]
[1724264761155,0.165554,60404.0,60395.0,0.1806]
[1724264761371,0.165558,60402.0,60396.0,0.00862834]
[1724264761607,0.19152201,60402.0,60396.0,0.00862834]
[1724264761854,0.02596401,60402.0,60396.0,0.00862834]
[1724264762103,0.165563,60400.0,60396.0,0.00862834]
[1724264762319,0.165571,60397.0,60396.0,0.00862834]
[1724264762539,0.354127,60400.0,60390.0,0.1814]
[1724264762744,0.1,60399.0,60396.0,0.00862834]
[1724264762923,0.1,60399.0,60390.0,0.1814]
[1724264762924,0.165569,60398.0,60390.0,0.1814]
[1724264763161,0.331136,60398.0,60397.0,0.00861696]
[1724264763410,0.331136,60398.0,60390.0,0.1814]
[1724264763411,0.165575,60396.0,60387.0,0.301698]
[1724264763618,0.354136,60398.0,60388.0,0.165595]
[1724264763619,0.32957398,60397.0,60388.0,0.165595]
[1724264763829,0.023,60396.0,60388.0,0.17431439]
[1724264764036,0.023,60396.0,60388.0,0.17431339]
[1724264764037,0.188575,60396.0,60388.0,0.17431339]
[1724264764717,0.165576,60395.0,60388.0,0.00871939]
[1724264764897,0.165583,60393.0,60388.0,0.00871939]
[1724264765139,0.023,60396.0,60388.0,0.00871939]
[1724264765140,0.165591,60390.0,60388.0,0.00871939]
[1724264765361,0.165596,60388.0,60380.0,0.1814]
[1724264765572,0.165596,60388.0,60380.0,0.347016]
[1724264765779,0.165596,60388.0,60380.0,0.1814]
[1724264765987,0.165602,60386.0,60379.0,0.0009042]
[1724264766196,0.165604,60385.0,60379.0,0.0009042]
[1724264766400,0.023,60387.0,60379.0,0.0009042]
[1724264766609,0.188599,60387.0,60379.0,0.0009042]
[1724264766832,0.32959998,60388.0,60379.0,0.1665232]
[1724264767044,0.165599,60387.0,60379.0,0.1665232]
[1724264767249,0.165601,60386.0,60379.0,0.0009042]
[1724264767458,0.013,60385.0,60379.0,0.0009042]
[1724264767672,0.013,60385.0,60379.0,0.1665232]
[1724264767855,0.171599,60387.0,60379.0,0.1665232]
[1724264768097,0.171599,60387.0,60380.0,0.165616]
[1724264768098,0.006,60387.0,60380.0,0.165616]
[1724264768335,0.16400298,60388.0,60380.0,0.165616]
[1724264768742,0.004,60385.0,60379.0,0.1665242]
[1724264769382,0.004,60385.0,60384.0,0.512613]
[1724264769580,0.004,60385.0,60384.0,1.64074798]
[1724264769796,0.004,60385.0,60384.0,1.97196098]
[1724264770014,0.000822,60412.0,60384.0,1.97196098]
[1724264770228,0.49229154,60396.0,60395.0,0.483076]
[1724264770440,0.16400298,60411.0,60396.0,0.331146]
[1724264770652,0.000822,60412.0,60396.0,0.16400298]
[1724264770859,0.000822,60412.0,60405.0,0.331095]
[1724264771067,0.000822,60412.0,60408.0,0.165538]
[1724264771274,0.013822,60412.0,60408.0,0.165538]
[1724264771486,0.013,60411.0,60407.0,0.331085]
[1724264771714,0.013,60411.0,60410.0,0.165535]
[1724264771947,0.000822,60412.0,60411.0,0.165532]
[1724264772134,0.027822,60412.0,60409.0,0.301637]
[1724264772339,0.027822,60412.0,60410.0,0.165534]
[1724264772546,0.027822,60412.0,60408.0,0.1814]
[1724264772547,0.027822,60412.0,60411.0,0.165532]
[1724264772970,0.027822,60412.0,60411.0,0.496597]
[1724264773198,0.027822,60412.0,60411.0,0.827662]
[1724264773410,0.000822,60412.0,60411.0,1.62952998]
[1724264774044,0.000822,60412.0,60411.0,1.134462]
[1724264774257,0.000822,60412.0,60411.0,1.465527]
[1724264774682,0.014822,60412.0,60411.0,1.62952998]
[1724264774894,0.006822,60412.0,60411.0,1.62952998]
[1724264775102,0.013822,60412.0,60411.0,1.62952998]
[1724264776003,0.013822,60412.0,60411.0,1.96059498]
[1724264776875,0.000822,60412.0,60411.0,1.96359498]
[1724264777096,0.000822,60417.0,60416.0,1.465433]
[1724264777318,0.000822,60417.0,60416.0,1.96047398]
[1724264777530,0.000822,60417.0,60416.0,2.39151198]
[1724264778659,0.001822,60417.0,60416.0,2.39151198]
[1724264778870,0.001822,60417.0,60416.0,2.06047398]
[1724264779774,0.002822,60417.0,60416.0,2.06247398]
[1724264780195,0.001822,60417.0,60416.0,2.06047398]
[1724264780412,0.000822,60417.0,60416.0,2.06047398]
[1724264780627,0.002822,60417.0,60416.0,2.06247398]
[1724264780864,0.001822,60417.0,60416.0,2.06247398]
[1724264781110,0.001822,60417.0,60416.0,2.06147398]
[1724264781111,0.000822,60417.0,60416.0,2.06147398]
[1724264781333,0.001822,60417.0,60416.0,2.06047398]
[1724264781565,0.001822,60417.0,60416.0,2.06247398]
[1724264781566,0.002822,60417.0,60416.0,2.06247398]
[1724264781779,0.001822,60417.0,60416.0,2.06247398]
[1724264781980,0.002822,60417.0,60416.0,2.06247398]
[1724264782874,0.002822,60417.0,60416.0,2.06347398]
[1724264783083,0.002822,60417.0,60416.0,2.06247398]
[1724264783732,0.002822,60417.0,60416.0,2.06347398]
[1724264783942,0.002822,60417.0,60416.0,2.06247398]
[1724264784978,0.002822,60417.0,60416.0,2.39351198]
[1724264785615,0.002822,60417.0,60416.0,2.39451198]
[1724264785828,0.002822,60417.0,60416.0,2.39351198]
[1724264787370,4.8e-05,60449.0,60448.0,0.165431]
[1724264787592,4.8e-05,60449.0,60448.0,1.30325798]
[1724264787808,4.8e-05,60449.0,60448.0,1.96498198]
[1724264788032,4.8e-05,60449.0,60448.0,1.97703765]
[1724264788287,0.00823,60454.0,60453.0,1.488757]
[1724264788567,0.00823,60454.0,60453.0,1.73402498]
[1724264788857,0.00823,60454.0,60453.0,1.15115748]
[1724264789123,0.00823,60454.0,60453.0,0.01197048]
[1724264789371,0.00823,60454.0,60453.0,0.00798032]
[1724264789638,0.00823,60454.0,60448.0,0.001]
[1724264789890,0.1379,60453.0,60448.0,0.001]
[1724264790141,0.30730298,60452.0,60448.0,0.012]
[1724264790397,0.47272398,60452.0,60448.0,0.012]
[1724264790680,0.47272398,60452.0,60440.0,0.165451]
[1724264790946,0.47272398,60452.0,60438.0,0.1692]
[1724264790947,0.330846,60451.0,60448.0,0.001]
[1724264791204,0.330857,60449.0,60448.0,0.001]
[1724264791450,0.99114498,60449.0,60448.0,0.002]
[1724264791704,1.15512376,60449.0,60448.0,0.001]
[1724264791944,0.66028798,60449.0,60448.0,0.001]
[1724264792426,0.66028798,60449.0,60431.0,0.33095]
[1724264792427,0.165445,60443.0,60431.0,0.33095]
[1724264792662,0.33088,60445.0,60432.0,0.330949]
[1724264792912,0.165437,60446.0,60440.0,0.001]
[1724264793151,0.16544,60445.0,60440.0,0.002]
[1724264793394,0.165442,60444.0,60435.0,0.165466]
[1724264793922,0.002,60443.0,60436.0,0.00817346]
[1724264794194,0.165442,60444.0,60436.0,0.00817346]
[1724264794466,0.330873,60446.0,60436.0,0.00817346]
[1724264794467,0.165451,60441.0,60436.0,0.00817346]
[1724264794717,0.342857,60449.0,60440.0,0.002]
[1724264794718,0.002,60445.0,60440.0,0.002]
[1724264795765,0.002,60445.0,60441.0,0.00811664]
[1724264796329,0.167441,60445.0,60441.0,0.00811664]
[1724264796591,0.167441,60445.0,60440.0,0.001]
[1724264796592,0.01,60443.0,60440.0,0.001]
[1724264796837,0.022,60443.0,60440.0,0.001]
[1724264797252,0.012,60443.0,60442.0,1.007937]
[1724264797256,0.012,60443.0,60442.0,1.338832]
[1724264797485,0.013,60445.0,60442.0,1.338832]
[1724264797486,0.024,60445.0,60444.0,0.82721]
[1724264797682,0.024,60445.0,60444.0,1.00333682]
[1724264797683,0.011,60445.0,60444.0,1.00333682]
[1724264798337,0.011,60445.0,60444.0,1.17021784]
[1724264798582,0.000823,60449.0,60448.0,0.165431]
[1724264798805,0.000823,60449.0,60444.0,0.01212384]
[1724264798806,0.000823,60449.0,60444.0,0.17756484]
[1724264799073,0.000823,60449.0,60448.0,0.01205567]
[1724264799634,0.000823,60449.0,60440.0,0.331903]
[1724264799635,0.1393,60448.0,60444.0,0.001]
[1724264799837,0.16400298,60447.0,60444.0,0.001]
[1724264800251,0.16400298,60447.0,60438.0,0.165458]
[1724264800684,0.304731,60448.0,60439.0,0.00813937]
[1724264800685,0.1393,60448.0,60439.0,0.00813937]
[1724264800884,0.30330298,60448.0,60443.0,0.165445]
[1724264801086,0.014,60447.0,60444.0,0.001]
[1724264801201,0.014,60447.0,60444.0,0.00908256]
[1724264801664,0.000823,60449.0,60444.0,0.01210679]
[1724264801857,0.000823,60449.0,60448.0,0.496293]
[1724264802065,0.000823,60449.0,60448.0,0.83921067]
[1724264802470,0.000823,60449.0,60448.0,0.50834867]
[1724264802884,0.000823,60449.0,60448.0,0.01205567]
[1724264803265,0.000823,60449.0,60443.0,0.165444]
[1724264803453,0.000823,60449.0,60448.0,0.00803711]
[1724264803693,0.000823,60449.0,60437.0,0.1722]
[1724264803694,0.1438,60448.0,60444.0,0.001]
[1724264803874,0.165434,60447.0,60439.0,0.165455]
[1724264804307,0.30780298,60448.0,60442.0,0.165446]
[1724264804447,0.30780298,60448.0,60440.0,0.165451]
[1724264804651,0.16400298,60447.0,60438.0,0.165458]
[1724264804855,0.165443,60444.0,60436.0,0.165463]
[1724264805052,0.1384,60446.0,60431.0,0.1739]
[1724264805053,0.16400298,60443.0,60437.0,0.16546]
[1724264805254,0.16400298,60443.0,60431.0,0.1739]
[1724264805501,0.20648944,60443.0,60436.0,0.165461]
[1724264805804,0.16400298,60443.0,60436.0,0.165461]
[1724264806013,0.16400298,60443.0,60434.0,0.330938]
[1724264806014,0.16400298,60443.0,60437.0,0.16546]
[1724264806656,0.002,60440.0,60431.0,0.001]
[1724264806870,0.1438,60442.0,60431.0,0.001]
[1724264806871,0.165465,60436.0,60431.0,0.001]
[1724264807076,0.165467,60435.0,60425.0,0.330983]
[1724264807284,0.165467,60435.0,60422.0,0.49229154]
[1724264807285,0.16400298,60435.0,60422.0,0.49229154]
[1724264807511,0.16400298,60435.0,60426.0,0.16549]
[1724264807761,0.16400298,60435.0,60422.0,0.331004]
[1724264807967,0.1438,60434.0,60422.0,0.331004]
[1724264808173,0.1438,60434.0,60421.0,0.1453]
[1724264808174,0.16400298,60433.0,60423.0,0.330999]
[1724264808387,0.16400298,60433.0,60427.0,0.165486]
[1724264808814,0.16400298,60433.0,60431.0,0.001]
[1724264809276,0.16400298,60433.0,60428.0,0.165485]
[1724264809936,0.16400298,60433.0,60426.0,0.330983]
[1724264810156,0.17300298,60433.0,60427.0,0.165488]
[1724264810608,0.18500298,60433.0,60428.0,0.001]
[1724264811034,0.17300298,60433.0,60427.0,0.165488]
[1724264811676,0.16400298,60433.0,60427.0,0.165488]
[1724264811881,0.18600298,60433.0,60428.0,0.001]
[1724264812289,0.17600298,60433.0,60427.0,0.215488]
[1724264812737,0.18600298,60433.0,60427.0,0.216488]
[1724264812949,0.022,60433.0,60432.0,0.827375]
[1724264813158,0.01,60433.0,60432.0,1.158325]
[1724264813363,0.022,60433.0,60432.0,1.158325]
[1724264813794,0.01,60433.0,60432.0,1.158325]
[1724264814007,0.015,60433.0,60432.0,1.158325]
[1724264814216,0.015,60433.0,60432.0,1.298525]
[1724264814494,0.01,60433.0,60432.0,1.96417798]
[1724264814710,0.40572708,60442.0,60441.0,0.496351]
[1724264814936,0.000823,60449.0,60448.0,0.496293]
[1724264815167,0.000823,60449.0,60448.0,1.96378198]
[1724264815408,0.000823,60449.0,60448.0,2.24818198]
[1724264815829,1e-08,60449.0,60448.0,2.24818198]
[1724264816667,0.00100001,60449.0,60448.0,1.97478198]
[1724264817301,0.00200001,60449.0,60448.0,1.98878198]
[1724264817511,0.00200001,60449.0,60448.0,1.493917]
[1724264817726,0.00200001,60449.0,60448.0,1.163055]
[1724264817942,0.00100001,60449.0,60448.0,1.152055]
[1724264818156,0.00200001,60449.0,60448.0,1.162055]
[1724264818368,0.00200001,60449.0,60448.0,0.851155]
[1724264818791,0.00100001,60449.0,60448.0,0.841155]
[1724264819028,0.00200001,60449.0,60448.0,0.851155]
[1724264819269,0.00100001,60449.0,60448.0,0.837155]
[1724264819481,0.00100001,60449.0,60448.0,1.51371998]
[1724264819729,0.00100001,60449.0,60448.0,1.349717]
[1724264819997,1e-08,60449.0,60448.0,1.393717]
[1724264820246,1e-08,60449.0,60448.0,1.396717]
[1724264820492,1e-08,60449.0,60448.0,1.062855]
[1724264820705,0.00100001,60449.0,60448.0,1.070855]
[1724264821110,1e-08,60449.0,60448.0,1.062855]
[1724264821536,1e-08,60449.0,60448.0,1.69171998]
[1724264821752,0.00100001,60449.0,60448.0,1.70071998]
[1724264822382,1e-08,60449.0,60448.0,1.69171998]
[1724264822568,0.00100001,60449.0,60448.0,1.70071998]
[1724264823016,0.00100001,60449.0,60448.0,1.69771998]
[1724264823233,0.00100001,60449.0,60448.0,1.70071998]
[1724264823451,0.00100001,60449.0,60448.0,1.70171998]
[1724264823878,0.00200001,60449.0,60448.0,1.71371998]
[1724264824548,0.00200001,60449.0,60448.0,2.37644398]
[1724264824830,0.00200001,60449.0,60448.0,2.52711684]
[1724264825087,0.000823,60451.0,60450.0,1.833078]
[1724264825312,0.011986,60491.0,60478.0,0.0026]
[1724264825520,0.011986,60491.0,60484.0,1.157327]
[1724264825521,0.49229154,60487.0,60484.0,1.157327]
[1724264825947,0.011986,60491.0,60484.0,1.1649554]
[1724264826377,0.011986,60491.0,60484.0,1.50975838]
[1724264826707,0.81527524,60489.0,60488.0,0.82661]
[1724264826936,0.00140016,60501.0,60488.0,0.82661]
[1724264826937,0.00030016,60501.0,60500.0,0.495867]
[1724264827145,0.00030016,60501.0,60500.0,1.3208362]
[1724264827357,0.00030016,60501.0,60500.0,1.16800357]
[1724264827777,0.00030016,60501.0,60500.0,1.33200655]
[1724264829188,0.00030016,60501.0,60500.0,0.83742557]
[1724264829839,0.00130016,60501.0,60500.0,0.84742557]
[1724264830056,0.00130016,60501.0,60500.0,0.01117035]
[1724264830057,0.64788914,60501.0,60500.0,0.01117035]
[1724264830275,0.48060314,60501.0,60500.0,0.006]
[1724264830484,0.48060314,60501.0,60500.0,0.001]
[1724264830485,1.07746214,60501.0,60500.0,0.001]
[1724264830704,1.07746214,60501.0,60462.0,0.001]
[1724264830705,0.001,60498.0,60457.0,0.03]
[1724264830915,0.355,60480.0,60465.0,0.49229154]
[1724264831131,0.355,60480.0,60462.0,0.330786]
[1724264831132,0.003,60478.0,60462.0,0.330786]
[1724264831344,0.003,60478.0,60461.0,0.16440118]
[1724264831345,0.166355,60476.0,60461.0,0.0003982]
[1724264831567,0.165355,60476.0,60461.0,0.0003982]
[1724264831784,0.001,60475.0,60461.0,0.0003982]
[1724264832039,0.165393,60462.0,60461.0,0.0003982]
[1724264832252,0.3163,60466.0,60461.0,0.0003982]
[1724264832253,0.165385,60465.0,60461.0,0.0003982]
[1724264832469,0.3163,60466.0,60461.0,0.0003982]
[1724264832881,0.165388,60464.0,60461.0,0.0003982]
[1724264833097,0.165391,60463.0,60461.0,0.0003982]
[1724264833354,0.188393,60462.0,60461.0,0.0013982]
[1724264833562,0.187393,60462.0,60461.0,0.0013982]
[1724264833766,0.014,60462.0,60461.0,0.0003982]
[1724264834192,0.014,60462.0,60461.0,0.0013982]
[1724264834656,0.1766,60466.0,60461.0,0.0013982]
[1724264835121,0.014,60464.0,60461.0,0.0013982]
[1724264835545,0.1766,60466.0,60461.0,0.0013982]
[1724264835758,0.014,60462.0,60461.0,0.0013982]
[1724264835968,0.014,60462.0,60461.0,0.0003982]
[1724264836381,0.008,60462.0,60461.0,0.0013982]
[1724264836585,0.014,60464.0,60461.0,0.0003982]
[1724264837006,0.014,60464.0,60461.0,0.0013982]
[1724264837232,0.014,60464.0,60461.0,0.0003982]
[1724264837654,0.330786,60462.0,60461.0,0.0003982]
[1724264837854,0.496179,60462.0,60461.0,0.0003982]
[1724264838059,0.99096798,60462.0,60461.0,0.0003982]
[1724264838273,0.014,60464.0,60461.0,0.0003982]
[1724264838489,0.004,60485.0,60461.0,0.0003982]
[1724264838490,0.3153,60483.0,60463.0,0.1374]
[1724264838696,0.49229154,60473.0,60464.0,0.16400298]
[1724264838902,0.165345,60480.0,60464.0,0.16400298]
[1724264839108,0.49229154,60481.0,60470.0,0.16537]
[1724264839310,0.165344,60480.0,60470.0,0.16537]
[1724264839781,0.165344,60480.0,60468.0,0.330752]
[1724264839782,0.165353,60477.0,60468.0,0.165375]
[1724264840196,0.165356,60476.0,60466.0,0.496144]
[1724264840400,0.165356,60476.0,60467.0,0.165378]
[1724264840604,0.339688,60480.0,60467.0,0.165378]
[1724264840605,0.165357,60475.0,60467.0,0.165378]
[1724264840813,0.16537,60471.0,60464.0,0.001]
[1724264841022,0.009,60480.0,60464.0,0.49577598]
[1724264841232,0.165352,60477.0,60469.0,0.165371]
[1724264841440,0.009,60480.0,60467.0,0.165377]
[1724264841441,0.165355,60476.0,60467.0,0.165377]
[1724264841648,0.165358,60475.0,60465.0,0.330768]
[1724264841855,0.165363,60473.0,60470.0,0.001]
[1724264842065,0.165368,60471.0,60470.0,0.001]
[1724264842268,0.16538,60467.0,60452.0,0.330838]
[1724264842514,0.16538,60467.0,60459.0,0.165401]
[1724264842738,0.16400298,60473.0,60455.0,0.165411]
[1724264842739,0.165388,60464.0,60455.0,0.165411]
[1724264842949,0.1678,60466.0,60458.0,0.165402]
[1724264843394,0.1678,60466.0,60459.0,0.1654]
[1724264843594,0.1678,60466.0,60457.0,0.330811]
[1724264843595,0.333182,60466.0,60457.0,0.165405]
[1724264843816,0.333182,60466.0,60458.0,0.165403]
[1724264844018,0.333182,60466.0,60457.0,0.165405]
[1724264844224,0.165393,60462.0,60453.0,0.165416]
[1724264844436,0.165393,60462.0,60452.0,0.165418]
[1724264844646,0.330776,60464.0,60456.0,0.165407]
[1724264844647,0.165388,60464.0,60456.0,0.165407]
[1724264844853,0.498565,60466.0,60451.0,0.330844]
[1724264845061,0.165393,60462.0,60453.0,0.165417]
[1724264845272,0.826965,60462.0,60448.0,0.3317673]
[1724264845483,1.181965,60462.0,60461.0,0.0013982]
[1724264845914,1.184965,60462.0,60461.0,0.0023024]
[1724264846152,1.84373276,60462.0,60461.0,0.0013024]
[1724264846358,1.84073276,60462.0,60461.0,0.0013024]
[1724264846565,1.86873276,60462.0,60461.0,0.0013024]
[1724264846774,2.03403276,60462.0,60461.0,0.0013024]
[1724264846978,2.60931876,60462.0,60461.0,0.0013024]
[1724264847829,2.59531876,60462.0,60461.0,0.0013024]
[1724264848037,2.61831876,60462.0,60461.0,0.0013024]
[1724264848255,0.827142,60449.0,60448.0,0.0009053]
[1724264848460,1.15934498,60449.0,60448.0,0.0009053]
[1724264848687,1.49020198,60449.0,60448.0,0.0009053]
[1724264849109,1.15934498,60449.0,60448.0,0.0009053]
[1724264849765,1.17334498,60449.0,60448.0,0.0009053]
[1724264849966,1.18734498,60449.0,60448.0,0.0009053]
[1724264850182,0.1962,60449.0,60448.0,0.0009053]
[1724264850624,0.028,60449.0,60448.0,0.0009053]
[1724264850805,0.193428,60449.0,60448.0,0.0009053]
[1724264851039,0.014,60449.0,60448.0,0.0009053]
[1724264851259,0.028,60449.0,60448.0,0.1663363]
[1724264851489,0.014,60449.0,60448.0,0.0009053]
[1724264851913,0.014,60449.0,60448.0,0.1663363]
[1724264852122,0.014,60449.0,60448.0,0.0009053]
[1724264852369,0.027,60449.0,60448.0,0.1663363]
[1724264852586,0.013,60449.0,60448.0,1.13646328]
[1724264852802,0.17214429,60474.0,60448.0,1.13646328]
[1724264852803,0.1848,60477.0,60476.0,0.165354]
[1724264853020,0.49229154,60479.0,60478.0,0.496047]
[1724264853237,0.1848,60492.0,60477.0,0.16400298]
[1724264853473,0.35612316,60501.0,60489.0,0.826595]
[1724264853474,0.00112316,60501.0,60489.0,0.826595]
[1724264853680,0.00112316,60501.0,60491.0,0.330626]
[1724264853902,0.00112316,60501.0,60490.0,0.330632]
[1724264854111,0.00112316,60501.0,60493.0,0.330616]
[1724264854321,0.00112316,60501.0,60494.0,0.33061]
[1724264854538,0.00112316,60501.0,60494.0,0.165305]
[1724264854780,0.165293,60499.0,60489.0,0.165317]
[1724264854990,0.165296,60498.0,60488.0,0.165321]
[1724264855199,0.16482498,60500.0,60481.0,0.330681]
[1724264855200,0.003,60496.0,60481.0,0.330681]
[1724264855415,0.1817,60493.0,60477.0,0.330703]
[1724264855622,0.1817,60493.0,60478.0,0.330696]
[1724264855840,0.34701,60493.0,60483.0,0.165334]
[1724264856091,0.001,60491.0,60481.0,0.165338]
[1724264856284,0.330622,60492.0,60461.0,0.1378]
[1724264856285,0.355,60486.0,60461.0,0.1378]
[1724264856494,0.165334,60484.0,60462.0,0.16400298]
[1724264856709,0.32933698,60484.0,60464.0,0.330773]
[1724264856952,0.165337,60483.0,60473.0,0.165361]
[1724264857702,0.165345,60480.0,60471.0,0.165368]
[1724264857937,0.1809,60481.0,60465.0,0.16400298]
[1724264858158,0.165354,60477.0,60462.0,0.165391]
[1724264858391,0.16400298,60476.0,60462.0,0.165392]
[1724264858655,0.16537,60471.0,60463.0,0.16539]
[1724264859146,0.330721,60474.0,60461.0,0.165395]
[1724264859347,0.26956318,60476.0,60457.0,0.330812]
[1724264859348,0.67892898,60473.0,60457.0,0.330812]
[1724264859577,0.330735,60472.0,60457.0,0.330812]
[1724264859785,0.165376,60468.0,60459.0,0.1654]
[1724264860023,0.1413,60467.0,60459.0,0.1654]
[1724264860231,0.165388,60464.0,60451.0,0.330842]
[1724264860442,0.355,60472.0,60452.0,0.16400298]
[1724264860650,0.10828753,60472.0,60452.0,0.16400298]
[1724264860886,0.1842,60473.0,60465.0,0.330766]
[1724264861101,0.012,60471.0,60463.0,0.1945]
[1724264861334,0.012,60471.0,60470.0,0.165371]